[Event "XII Figueira da Foz Open 2018"]
[Site "Figueira da Foz"]
[Date "2018.10.31"]
[Round "4"]
[White "Ferreira, Cristina"]
[Black "Lopez de Turiso, Jose Angel"]
[Result "0-1"]
[ECO "A84"]
[WhiteElo "1069"]
[BlackElo "1933"]
[Annotator "NA RC"]
[PlyCount "88"]
[EventDate "2018.10.30"]
[EventType "swiss"]
[EventCountry "POR"]
[SourceTitle "playchess.com"]
[Source "ChessBase"]
[SourceQuality "1"]
[TimeControl "40/5400+30:1800+30"]

1. d4 {[%emt 0:00:00]} f5 {[%emt 0:00:53]} 2. c4 {[%emt 0:01:02]} Nf6 {[%emt 0:00:13]} 3. Nf3 {[%emt 0:01:03]} d6 {[%emt 0:02:23]} 4. Bg5 {[%emt 0:03:23]} Nbd7 {[%emt 0:04:01]} 5. e3 {[%emt 0:02:32]} Ne4 {[%emt 0:04:10]} 6. Bh4 {[%emt 0:02:53]} g6 {[%emt 0:03:07]} 7. Be2 {[%emt 0:04:26]} Bg7 {[%emt 0:00:41]} 8. Nbd2 {[%emt 0:05:36]} Nxd2 {[%emt 0:05:31]} 9. Qxd2 {[%emt 0:00:31]} O-O {[%emt 0:00:51]} 10. O-O {[%emt 0:02:41]} Qe8 {[%emt 0:01:13]} 11. Rac1 {[%emt 0:09:47]} e5 {[%emt 0:06:00]} 12. c5 {[%emt 0:03:06]} dxc5 {[%emt 0:02:10]} 13. dxc5 {[%emt 0:00:53]} h6 {[%emt 0:07:07]} 14. Bc4+ {[%emt 0:04:20]} Kh8 {[%emt 0:00:48]} 15. Ng5 {[%emt 0:04:55]} hxg5 {[%emt 0:02:59]} 16. Bxg5 {[%emt 0:07:37]} Nxc5 {[%emt 0:02:12]} 17. f3 {[%emt 0:02:19]} Be6 {[%emt 0:02:57]} 18. Qf2 {[%emt 0:05:12]} Kg8 {[%emt 0:01:18]} 19. Qh4 {[%emt 0:04:34]} Kf7 {[%emt 0:00:40]} 20. Rfd1 {[%emt 0:04:13]} (20. Be2 $142 Rh8 21. Qg3) 20... Rh8 {[%emt 0:02:15]} 21. Qf2 {[%emt 0:04:45]} Bxc4 {[%emt 0:01:46]} 22. Rxc4 {[%emt 0:02:27]} Ne6 {[%emt 0:00:27]} 23. Bh4 {[%emt 0:02:24]} Bf6 {[%emt 0:05:04]} 24. Bxf6 {[%emt 0:02:53]} Kxf6 {[%emt 0:00:06]} 25. Qg3 {[%emt 0:00:47]} Rd8 {[%emt 0:02:10]} 26. Rcc1 {[%emt 0:01:39]} c6 {[%emt 0:04:13]} 27. Qe1 {[%emt 0:02:13]} Qe7 {[%emt 0:08:51]} 28. e4 {[%emt 0:01:18]} f4 {[%emt 0:06:24]} 29. Qf2 {[%emt 0:00:14]} Rxd1+ {[%emt 0:02:28]} 30. Rxd1 {[%emt 0:00:28]} Qc5 {[%emt 0:02:52]} 31. Qxc5 {[%emt 0:00:57]} Nxc5 {[%emt 0:00:05]} 32. Rd6+ {[%emt 0:00:20]} Ne6 {[%emt 0:02:44]} 33. g4 {[%emt 0:00:30]} Rd8 {[%emt 0:01:17]} 34. Rxd8 {[%emt 0:02:08]} Nxd8 {[%emt 0:00:05]} 35. h4 {[%emt 0:00:45]} Ne6 {[%emt 0:00:44]} 36. Kg2 {[%emt 0:01:32]} c5 {[%emt 0:01:57]} 37. Kh3 {[%emt 0:00:21]} b5 {[%emt 0:00:48]} 38. g5+ {[%emt 0:01:02]} Ke7 {[%emt 0:01:34]} 39. b3 {[%emt 0:01:40]} c4 {[%emt 0:00:16]} 40. Kg4 {[%emt 0:00:00]} c3 {[%emt 0:00:00]} 41. h5 {[%emt 0:03:39]} c2 {[%emt 0:00:39]} 42. hxg6 {[%emt 0:02:17]} c1=Q {[%emt 0:00:12]} 43. Kf5 {[%emt 0:02:05]} Qg1 {[%emt 0:00:17]} 44. g7 {[%emt 0:02:31]} Qxg5# 0-1

[Event "XII Figueira da Foz Open 2018"]
[Site "Figueira da Foz"]
[Date "2018.11.01"]
[Round "5"]
[White "Perez Garcia, Rodney Oscar"]
[Black "Fernandes, Ricardo Paulos"]
[Result "1-0"]
[ECO "B08"]
[WhiteElo "2362"]
[BlackElo "2098"]
[Annotator "ChessBase"]
[PlyCount "95"]
[EventDate "2018.10.30"]
[EventType "swiss"]
[EventCountry "POR"]
[SourceTitle "playchess.com"]
[Source "ChessBase"]
[SourceQuality "1"]
[TimeControl "40/5400+30:1800+30"]

1. e4 d6 2. d4 Nf6 3. Nc3 g6 4. Nf3 Bg7 5. Be2 O-O 6. O-O c6 7. Re1 Qc7 8. Bf4 Nh5 9. Bg5 h6 10. Be3 e5 11. Qd2 Kh7 12. Rad1 Be6 13. d5 cxd5 14. Nb5 Qe7 15. exd5 Bc8 16. Nxa7 f5 17. Qb4 f4 18. Nxc8 Rxc8 19. Bd3 fxe3 20. Qg4 Qe8 21. Bxg6+ Qxg6 22. Qxc8 e4 23. Nh4 exf2+ 24. Kxf2 Qf6+ 25. Qf5+ Qxf5+ 26. Nxf5 Be5 27. Rxe4 Kg6 28. Nh4+ Kh7 29. Rb4 Ra7 30. Nf3 Bf6 31. Rb6 Be7 32. Re1 Bf8 33. Nd4 Nd7 34. Rb5 Ne5 35. Ne6 Be7 36. Re4 Nf6 37. Reb4 Kg6 38. Rxb7 Rxb7 39. Rxb7 Nxd5 40. a4 Kf5 41. Nd4+ Ke4 42. Nf3 Nc4 43. b4 Bf6 44. a5 Bc3 45. a6 Bxb4 46. a7 Ncb6 47. c4 Nc3 48. Rxb6 1-0

[Event "XII Figueira da Foz Open 2018"]
[Site "Figueira da Foz"]
[Date "2018.11.01"]
[Round "5"]
[White "Dias, Ricardo Pedro Cruz"]
[Black "Puglia, Francesco"]
[Result "1/2-1/2"]
[ECO "B87"]
[WhiteElo "2098"]
[BlackElo "1803"]
[Annotator "NA RC"]
[PlyCount "134"]
[EventDate "2018.10.30"]
[EventType "swiss"]
[EventCountry "POR"]
[SourceTitle "playchess.com"]
[Source "ChessBase"]
[SourceQuality "1"]
[TimeControl "40/5400+30:1800+30"]

1. e4 {[%emt 0:00:34]} c5 {[%emt 0:00:00]} 2. Nf3 {[%emt 0:00:09]} d6 {[%emt 0:00:00]} 3. d4 {[%emt 0:00:06]} cxd4 {[%emt 0:00:00]} 4. Nxd4 {[%emt 0:00:08]} Nf6 {[%emt 0:00:03]} 5. Nc3 {[%emt 0:00:03]} a6 {[%emt 0:00:03]} 6. Bc4 {[%emt 0:00:29]} e6 {[%emt 0:00:02]} 7. Bb3 {[%emt 0:00:06]} b5 {[%emt 0:00:21]} 8. O-O {[%emt 0:00:08]} Be7 {[%emt 0:00:07]} 9. f4 {[%emt 0:02:30]} Bb7 {[%emt 0:05:11]} 10. Bxe6 {[%emt 0:07:50] B87: Sicilian Scheveningen/Najdorf: 6 Bc4, with early ...b5} (10. a3 Nbd7 11. Kh1 Nc5 12. e5 dxe5 13. fxe5 Nfe4 14. Nxe4 Bxe4 15. Ba2 O-O 16. c3 Qc7 17. Bf4 Rad8 {0-1 (48) Cruz,J (2432)-Santos Latasa,J (2536) Sitges 2017}) 10... fxe6 {[%emt 0:00:06]} 11. Nxe6 {[%emt 0:00:07]} Qb6+ {[%emt 0:00:05]} 12. Kh1 {[%emt 0:00:34]} Kf7 {[%emt 0:00:51]} 13. Ng5+ {[%emt 0:04:48]} Kg8 {[%emt 0:07:04]} ({Predecessor:} 13... Ke8 14. Qe2 b4 15. Be3 Qc6 16. Nd5 Nxd5 17. exd5 Qxd5 18. Rad1 Qf5 19. Bd4 Kd7 20. Bxg7 Rg8 21. Be5 Rg6 {½-½ (21) Soelter,R-Hemmelgarn,K Borgholzhausen 1978}) 14. e5 {[%emt 0:00:28]} Qc6 {[%emt 1:19:57]} 15. Rf2 {[%emt 0:00:30]} Nfd7 {[%emt 0:00:30]} 16. Qg4 {[%emt 0:00:30]} dxe5 {[%emt 0:00:30]} 17. Ne6 {[%emt 0:00:30]} Bf6 {[%emt 0:00:30]} 18. f5 {[%emt 0:00:30]} h5 {[%emt 0:00:30]} 19. Qg3 {[%emt 0:00:30]} h4 {[%emt 0:00:30]} 20. Qg6 {[%emt 0:00:30]} Nf8 {[%emt 0:00:30]} 21. Qg4 {[%emt 0:00:30]} Nbd7 {[%emt 0:00:30]} 22. Be3 {[%emt 0:00:30]} Re8 23. Rd1 Nxe6 {[%emt 0:01:00]} 24. fxe6 {[%emt 1:02:21]} Qxe6 {[%emt 0:00:17]} 25. Qxe6+ {[%emt 0:00:33]} Rxe6 {[%emt 0:00:01]} 26. Rxd7 {[%emt 0:00:10]} Bc6 {[%emt 0:00:10]} 27. Rdd2 {[%emt 0:07:08]} h3 {[%emt 0:00:02]} 28. Nd5 {[%emt 0:00:10]} Kf7 {[%emt 0:04:11]} 29. b3 {[%emt 0:00:43]} Rd8 {[%emt 0:00:51]} 30. c4 {[%emt 0:00:02]} bxc4 {[%emt 0:00:19]} 31. bxc4 {[%emt 0:00:01]} Red6 {[%emt 0:00:16]} 32. gxh3 {[%emt 0:02:02]} Bxd5+ {[%emt 0:00:23]} 33. cxd5 {[%emt 0:00:02]} Rxd5 {[%emt 0:00:02]} 34. Rc2 {[%emt 0:00:35]} R8d7 {[%emt 0:00:25]} 35. Kg2 {[%emt 0:00:48]} Rd3 {[%emt 0:00:23]} 36. Bg5 {[%emt 0:00:40]} Kg6 {[%emt 0:00:25]} 37. Bc1 {[%emt 0:00:31]} Kh5 {[%emt 0:01:07]} 38. Rfe2 {[%emt 0:00:54]} R3d5 {[%emt 0:00:46]} 39. Rc4 {[%emt 0:01:23]} Kg6 {[%emt 0:00:50]} 40. Ra4 {[%emt 0:00:00]} a5 {[%emt 0:00:00]} 41. Be3 {[%emt 0:02:17]} Bg5 {[%emt 0:04:29]} 42. Bf2 {[%emt 0:01:59]} Rd2 {[%emt 0:05:41]} 43. Rxd2 {[%emt 0:04:03]} Rxd2 {[%emt 0:00:03]} 44. Kf3 {[%emt 0:01:01]} e4+ 45. Rxe4 {[%emt 0:00:30]} Rxa2 46. Re5 {[%emt 0:00:30]} Bf6 {[%emt 0:03:57]} 47. Re6 {[%emt 0:06:13]} Ra3+ {[%emt 0:09:12]} 48. Kg2 {[%emt 0:00:53]} a4 {[%emt 0:01:52]} 49. Ra6 {[%emt 0:00:02]} Kf5 {[%emt 0:00:59]} 50. h4 $1 {[%emt 0:00:26]} Ra2 {[%emt 0:01:10]} 51. Kf3 {[%emt 0:00:16]} Ra3+ {[%emt 0:01:42]} 52. Kg2 {[%emt 0:00:01]} Kg4 {[%emt 0:05:12]} 53. Bg3 {[%emt 0:02:25]} Ra2+ {[%emt 0:00:18]} 54. Kf1 {[%emt 0:00:01]} Kf3 {[%emt 0:00:44]} 55. Ke1 {[%emt 0:00:04]} Ke3 {[%emt 0:00:56]} 56. Re6+ {[%emt 0:01:02]} Kd3 {[%emt 0:00:30]} 57. h5 $2 {[%emt 0:00:15]} (57. Kf1) 57... Bd4 {[%emt 0:00:43]} 58. Kf1 {[%emt 0:00:45]} a3 {[%emt 0:00:32]} 59. Ra6 {[%emt 0:03:53]} Ra1+ $2 {[%emt 0:00:18]} (59... Bc5 60. Bd6 Ra1+ 61. Kg2 Bxd6 62. Rxd6+ Kc4) 60. Kg2 {[%emt 0:00:01]} a2 {[%emt 0:00:11]} 61. Kh3 {[%emt 0:00:05]} Kc2 {[%emt 0:01:12]} 62. Ra8 {[%emt 0:00:08]} Bc3 {[%emt 0:00:33]} 63. Bd6 {[%emt 0:00:55]} Kb3 $11 {[%emt 0:01:10]} (63... Bf6 $17 64. Bf8 Kb3 65. Rb8+ Kc2 66. Rc8+ Kb2 67. Rb8+ Kc2 68. Rc8+ Kb3 69. Rb8+ Kc3) 64. Ra3+ {[%emt 0:06:48]} Kb2 {[%emt 0:00:03]} 65. Rxc3 {[%emt 0:00:05]} Re1 {[%emt 0:00:31]} 66. Ra3 {[%emt 0:00:05]} a1=Q {[%emt 0:00:07]} 67. Rxa1 {[%emt 0:00:03]} Kxa1 {[%emt 0:00:09]} 1/2-1/2

[Event "XII Figueira da Foz Open 2018"]
[Site "Figueira da Foz"]
[Date "2018.11.01"]
[Round "5"]
[White "Pipiras, Filipa Fortuna"]
[Black "Morais, Vitor"]
[Result "1/2-1/2"]
[ECO "A40"]
[WhiteElo "1853"]
[BlackElo "1918"]
[Annotator "NA"]
[PlyCount "126"]
[EventDate "2018.10.30"]
[EventType "swiss"]
[EventCountry "POR"]
[SourceTitle "playchess.com"]
[Source "ChessBase"]
[SourceQuality "1"]
[TimeControl "40/5400+30:1800+30"]

1. d4 {[%emt 0:09:08]} g6 {[%emt 0:00:00]} 2. c4 {[%emt 0:00:26]} Bg7 {[%emt 0:00:00]} 3. Nc3 {[%emt 0:00:29]} Nf6 {[%emt 0:00:00]} 4. Nf3 {[%emt 0:00:32]} O-O {[%emt 0:00:04]} 5. Bg5 {[%emt 0:01:18]} d6 {[%emt 0:00:09]} 6. e3 {[%emt 0:00:30]} Nbd7 {[%emt 0:00:13]} 7. Be2 {[%emt 0:00:26]} h6 {[%emt 0:00:17]} 8. Bh4 {[%emt 0:00:45]} e5 {[%emt 0:01:03]} 9. Qc2 {[%emt 0:00:23]} c6 {[%emt 0:00:16]} 10. O-O {[%emt 0:00:35]} Qe7 {[%emt 0:00:06]} 11. Rfd1 {[%emt 0:00:57]} g5 {[%emt 0:00:25] E61: King's Indian: Early deviations for White, including Smyslov System} 12. Bg3 {[%emt 0:00:47]} (12. dxe5 dxe5 13. Bg3 Nh5 14. Bd3 Nxg3 15. hxg3 Nc5 16. Bf5 e4 17. Bxc8 Raxc8 18. Nd4 f5 19. Qe2 {½-½ (57) Gausel,E (2479)-Djurhuus,R (2421) Norway 2018}) 12... Nh5 {[%emt 0:00:19] LiveBook: 4 Partien} 13. dxe5 {[%emt 0:07:19]} Nxg3 {[%emt 0:00:31]} 14. hxg3 {[%emt 0:00:12]} dxe5 {[%emt 0:00:07]} 15. Ne4 {[%emt 0:01:14]} (15. Nd2 $14) 15... f5 $146 {[%emt 0:00:32]} ({Predecessor:} 15... Nc5 16. Nd6 a5 17. Nxc8 Raxc8 18. Nd2 f5 {1-0 (48) Koc,I (2050)-Kocak,C (1944) Antalya 2017}) 16. Nd6 {[%emt 0:03:52]} e4 {[%emt 0:00:10]} 17. Nxc8 {[%emt 0:01:04]} Raxc8 {[%emt 0:00:10]} 18. Nd4 {[%emt 0:00:44]} Ne5 $11 {[%emt 0:00:09]} 19. c5 Kh8 {[%emt 0:00:30]} 20. b4 a6 {[%emt 0:00:30]} 21. Rab1 Rf6 {[%emt 0:00:30]} 22. a4 Nd7 {[%emt 0:00:30]} 23. Qd2 Nf8 {[%emt 0:00:30]} 24. b5 cxb5 {[%emt 0:00:30]} 25. axb5 Rxc5 {[%emt 0:00:30]} 26. bxa6 bxa6 {[%emt 0:00:30]} 27. Qb4 Qc7 {[%emt 0:00:30]} 28. Nb3 Rc3 {[%emt 0:00:30]} 29. Nd4 f4 {[%emt 0:00:30]} 30. gxf4 gxf4 {[%emt 0:00:30]} 31. exf4 Rxf4 {[%emt 0:00:30]} 32. Bxa6 Rh4 {[%emt 0:00:30]} 33. Qb8 Qf7 {[%emt 0:00:30]} 34. g3 Qg6 {[%emt 0:00:30]} 35. Bf1 e3 {[%emt 0:00:30]} 36. Ne2 exf2+ {[%emt 0:00:30]} 37. Kxf2 Rh2+ {[%emt 0:00:30]} 38. Bg2 Rc2 {[%emt 0:00:30]} 39. Qa8 Rxe2+ {[%emt 0:00:30]} 40. Kxe2 Qxg3 {[%emt 0:00:30]} 41. Kf1 Kh7 {[%emt 0:30:30]} 42. Qe4+ Kh8 {[%emt 0:00:30]} 43. Qf3 Qxf3+ {[%emt 0:00:30]} 44. Bxf3 Rh4 {[%emt 0:00:30]} 45. Rb7 Rf4 {[%emt 0:00:30]} 46. Kg2 Rf5 {[%emt 0:00:30]} 47. Rc1 Rg5+ {[%emt 0:00:30]} 48. Kf1 Kg8 {[%emt 0:00:30]} 49. Rcc7 Ne6 {[%emt 0:00:30]} 50. Re7 Nf8 {[%emt 0:00:30]} 51. Bd1 Bf6 {[%emt 0:00:30]} 52. Bb3+ Kh8 {[%emt 0:00:30]} 53. Rf7 Bg7 {[%emt 0:00:30]} 54. Rxg7 Rxg7 {[%emt 0:00:30]} 55. Rb8 Rg5 {[%emt 0:00:30]} 56. Rxf8+ Kg7 {[%emt 0:00:30]} 57. Rg8+ Kf6 {[%emt 0:00:30]} 58. Rh8 Rf5+ {[%emt 0:00:30]} 59. Kg2 Kg5 {[%emt 0:00:30]} 60. Rg8+ Kf4 {[%emt 0:00:30]} 61. Kh3 Rh5+ {[%emt 0:00:30]} 62. Kg2 Rg5+ {[%emt 0:00:30]} 63. Rxg5 hxg5 {[%emt 0:00:30]} 1/2-1/2

[Event "XII Figueira da Foz Open 2018"]
[Site "Figueira da Foz"]
[Date "2018.11.01"]
[Round "5"]
[White "Louzao Brea, Jose Luis"]
[Black "Correia, Pedro Mourao Soares"]
[Result "1-0"]
[ECO "B01"]
[WhiteElo "1835"]
[BlackElo "1518"]
[Annotator "NA"]
[PlyCount "46"]
[EventDate "2018.10.30"]
[EventType "swiss"]
[EventCountry "POR"]
[SourceTitle "playchess.com"]
[Source "ChessBase"]
[SourceQuality "1"]
[TimeControl "40/5400+30:1800+30"]

{[%evp 9,39,50,103,79,95,92,92,75,81,88,116,83,83,95,103,98,107,103,106,60,83,-68,-44,-89,-88,-101,-89,-123,-83,-89,-10,-146]} 1. e4 d5 2. exd5 Nf6 3. Bb5+ Bd7 4. Bc4 c6 5. Nc3 {B01: Scandinavian Defence} (5. dxc6 Nxc6 6. Nf3 e5 7. d3 Bg4 8. h3 Bh5 9. Nbd2 Qc7 10. c3 O-O-O 11. Qe2 Bc5 12. Ne4 Bb6 13. Bg5 Qe7 {1-0 (40) Zajarnyi,A (2337)-Kigel,D (2210) Rodatychi 2011}) 5... cxd5 6. Nxd5 e6 7. Nxf6+ Qxf6 8. Qf3 Qe5+ 9. Qe2 Qg5 10. f3 $146 ({Predecessor:} 10. g3 Bc6 11. f3 Nd7 12. d4 Qe7 {0-1 (41) Aubin,A (1760)-Chabot,J (1610) Niort 2002}) 10... Bd6 11. d4 Qf6 12. c3 O-O 13. Nh3 e5 14. Bg5 Qg6 15. g4 $2 (15. dxe5 $16 Bxh3 16. Be3 (16. gxh3 Qxg5 17. exd6 Nc6 $11) 16... Bxe5 17. gxh3) 15... exd4 16. Bd3 {[#]} f5 $1 17. O-O dxc3 18. bxc3 Nc6 19. Rad1 Ne5 $11 (19... Rae8 $17 20. Be3 {[#]} Bc5 $1 {[%mdl 512]} 21. Bc4+ Kh8 22. Bxc5 Rxe2 23. Bxf8 Re4 $1 {[%mdl 512]} 24. fxe4 Qxg4+ 25. Kh1 Qxe4+ 26. Kg1 Qg4+ 27. Kh1 Qxc4) 20. Bc2 (20. Be7 $1 $11 {remains equal.} Bxe7 21. Qxe5 Qb6+ 22. Nf2) 20... Nc6 21. Qb5 Kh8 22. Qd5 Be6 23. Qxd6 Rad8 1-0

[Event "XII Figueira da Foz Open 2018"]
[Site "Figueira da Foz"]
[Date "2018.11.01"]
[Round "5"]
[White "Morais, Mario Martins Freit"]
[Black "Silva, Pedro Gil Ferreira "]
[Result "0-1"]
[ECO "A06"]
[WhiteElo "1766"]
[BlackElo "1837"]
[Annotator "NA RC"]
[PlyCount "90"]
[EventDate "2018.10.30"]
[EventType "swiss"]
[EventCountry "POR"]
[SourceTitle "playchess.com"]
[Source "ChessBase"]
[SourceQuality "1"]
[TimeControl "40/5400+30:1800+30"]

1. d3 {[%emt 0:02:42]} d5 {[%emt 0:00:00]} 2. Nf3 {[%emt 0:01:07]} Nf6 {[%emt 0:00:41]} 3. c3 {[%emt 0:00:28]} c5 {[%emt 0:00:59]} 4. g3 {[%emt 0:00:28]} e6 {[%emt 0:00:40]} 5. Bg2 {[%emt 0:00:56]} Nc6 {[%emt 0:02:14]} 6. Nbd2 {[%emt 0:01:15]} Be7 {[%emt 0:02:08]} 7. Qc2 {[%emt 0:01:47]} O-O {[%emt 0:00:37]} 8. O-O {[%emt 0:00:20]} Qc7 {[%emt 0:01:42]} 9. e4 {[%emt 0:00:32]} b5 {[%emt 0:02:45]} 10. d4 {[%emt 0:08:52]} cxd4 {[%emt 0:07:00]} 11. cxd4 {[%emt 0:00:17]} Qb6 {[%emt 0:00:33]} 12. e5 {[%emt 0:01:39]} Nd7 {[%emt 0:00:30]} 13. Nb3 {[%emt 0:01:42]} a5 {[%emt 0:02:14]} 14. Be3 Ba6 {[%emt 0:07:37]} 15. Rfc1 {[%emt 0:19:22]} Rfc8 {[%emt 0:03:34]} 16. Qd1 {[%emt 0:00:47]} a4 {[%emt 0:10:32]} 17. Nbd2 {[%emt 0:01:50]} Nb4 {[%emt 0:03:30]} 18. Bf1 {[%emt 0:04:15]} Rxc1 {[%emt 0:06:04]} 19. Qxc1 {[%emt 0:00:12]} Rc8 {[%emt 0:00:33]} 20. Qd1 {[%emt 0:00:15]} h6 {[%emt 0:14:45]} 21. a3 {[%emt 0:03:19]} Nc2 {[%emt 0:01:04]} 22. Rc1 {[%emt 0:00:34]} Nxe3 {[%emt 0:00:06]} 23. Rxc8+ {[%emt 0:00:15]} Bxc8 {[%emt 0:00:04]} 24. fxe3 {[%emt 0:00:25]} Qc6 {[%emt 0:00:28]} 25. Bd3 {[%emt 0:08:14]} Nb6 {[%emt 0:05:48]} 26. Bb1 {[%emt 0:06:20]} Bb7 {[%emt 0:11:13]} 27. Qc2 {[%emt 0:10:57]} Qxc2 28. Bxc2 {[%emt 0:00:14]} Bc6 {[%emt 0:01:05]} 29. Kf2 {[%emt 0:03:01]} Nc4 {[%emt 0:01:02]} 30. Nxc4 {[%emt 0:00:14]} bxc4 {[%emt 0:00:35]} 31. Ng1 {[%emt 0:01:11]} c3 {[%emt 0:00:32]} 32. bxc3 {[%emt 0:00:03]} Bxa3 33. Ke1 Bc1 {[%emt 0:04:30]} 34. Kd1 {[%emt 0:12:49]} Bxe3 {[%emt 0:00:36]} 35. Ne2 {[%emt 0:00:24]} f5 {[%emt 0:01:03]} 36. Nc1 {[%emt 0:01:28]} Bxc1 {[%emt 0:00:09]} 37. Kxc1 {[%emt 0:00:03]} g5 {[%emt 0:00:04]} 38. Kb2 {[%emt 0:01:55]} Kf7 {[%emt 0:00:40]} 39. h4 {[%emt 0:07:11]} gxh4 {[%emt 0:00:22]} 40. gxh4 {[%emt 0:00:00]} Kg6 {[%emt 0:00:00]} 41. Bd1 {[%emt 0:00:07]} f4 {[%emt 0:00:57]} 42. Bg4 {[%emt 0:00:23]} Bd7 {[%emt 0:00:37]} 43. Ka3 {[%emt 0:02:26]} h5 {[%emt 0:03:39]} 44. Bh3 {[%emt 0:00:06]} f3 {[%emt 0:00:29]} 45. Kb4 {[%emt 0:00:02]} f2 {[%emt 0:00:37]} 0-1

[Event "XII Figueira da Foz Open 2018"]
[Site "Figueira da Foz"]
[Date "2018.11.01"]
[Round "5"]
[White "Asvestopoulou, Evdokia"]
[Black "Dong, Rafael"]
[Result "1-0"]
[ECO "E17"]
[WhiteElo "1720"]
[BlackElo "1360"]
[Annotator "NA RC"]
[PlyCount "49"]
[EventDate "2018.10.30"]
[EventType "swiss"]
[EventCountry "POR"]
[SourceTitle "playchess.com"]
[Source "ChessBase"]
[SourceQuality "1"]
[TimeControl "40/5400+30:1800+30"]

1. d4 {[%emt 0:11:17]} Nf6 {[%emt 0:00:00]} 2. c4 {[%emt 0:00:16]} e6 {[%emt 0:00:00]} 3. Nf3 {[%emt 0:00:26]} b6 {[%emt 0:00:04]} 4. g3 {[%emt 0:00:13]} Bb7 {[%emt 0:00:09]} 5. Bg2 {[%emt 0:00:10]} Be7 {[%emt 0:01:01]} 6. O-O {[%emt 0:00:07]} c5 {[%emt 0:00:28]} 7. e3 {[%emt 0:03:18]} O-O {[%emt 0:00:17]} 8. Nc3 {[%emt 0:00:42]} d6 {[%emt 0:01:12]} 9. Re1 {[%emt 0:01:55]} Nbd7 {[%emt 0:02:11]} 10. e4 {[%emt 0:02:26]} d5 {[%emt 0:09:56]} 11. exd5 {[%emt 0:05:10]} exd5 {[%emt 0:00:20]} 12. Ne5 {[%emt 0:01:00]} cxd4 {[%emt 0:01:50]} 13. Qxd4 {[%emt 0:01:45]} Bc5 {[%emt 0:02:18]} 14. Qd1 {[%emt 0:00:56]} Nxe5 {[%emt 0:00:22]} 15. Rxe5 {[%emt 0:00:33]} Qc7 {[%emt 0:00:59]} 16. Bf4 {[%emt 0:09:59]} Bd6 {[%emt 0:01:25]} 17. Nb5 {[%emt 0:07:13]} Qd7 {[%emt 0:02:54]} 18. Nxd6 {[%emt 0:15:55]} Qxd6 {[%emt 0:00:01]} 19. cxd5 {[%emt 0:02:28]} Qd7 {[%emt 0:04:29]} 20. d6 {[%emt 0:07:06]} Bxg2 {[%emt 0:00:57]} 21. Kxg2 {[%emt 0:00:02]} Rfe8 {[%emt 0:02:42]} 22. Rc1 {[%emt 0:03:44]} Rxe5 {[%emt 0:00:56]} 23. Bxe5 {[%emt 0:00:09]} Ne8 {[%emt 0:00:23]} 24. Rc3 {[%emt 0:06:15]} f6 {[%emt 0:00:43]} 25. Qd5+ {[%emt 0:01:38]} 1-0

[Event "XII Figueira da Foz Open 2018"]
[Site "Figueira da Foz"]
[Date "2018.11.01"]
[Round "5"]
[White "Dias, Jose Oliveira Gaspa"]
[Black "Sismeiro, Miguel"]
[Result "0-1"]
[ECO "A06"]
[WhiteElo "1605"]
[BlackElo "2008"]
[Annotator "NA RC"]
[PlyCount "62"]
[EventDate "2018.10.30"]
[EventType "swiss"]
[EventCountry "POR"]
[SourceTitle "playchess.com"]
[Source "ChessBase"]
[SourceQuality "1"]
[TimeControl "40/5400+30:1800+30"]

{[%evp 15,62,-37,-28,32767,-26,-27,-8,-30,-22,-118,-137,-120,-129,-133,-96,-112,-43,-37,0,0,55,56,53,-57,-33,-37,-44,-65,-41,-62,-53,-73,-33,-89,-70,-361,-448,-591,-630,-3140,-1526,-5481,-5381,-2066,32767,32767,-29996,-29996,-29997]} 1. Nf3 {[%emt 0:00:00]} d5 {[%emt 0:01:33]} 2. g3 {[%emt 0:00:00]} Nf6 {[%emt 0:00:18]} 3. Bg2 {[%emt 0:00:00]} Bg4 {[%emt 0:00:07]} 4. O-O {[%emt 0:01:39]} e6 {[%emt 0:00:07]} 5. d3 {[%emt 0:00:24]} Be7 {[%emt 0:00:26]} 6. Nbd2 {[%emt 0:00:39] A07: Barcza-System (Königsfianchetto mit möglichen Übergängen in andere Systeme)} O-O {[%emt 0:00:46]} (6... c5 7. h3 Bh5 8. g4 Bg6 9. Ne5 Nbd7 10. Nxg6 hxg6 11. e4 dxe4 12. dxe4 Ne5 13. Qe2 g5 {½-½ (32) Ivanchuk,V (2710)-Lupulescu,C (2606) Batumi 2018}) 7. Qe1 {[%emt 0:01:10]} c5 {[%emt 0:03:26]} 8. e4 {[%emt 0:05:24]} Nc6 {[%emt 0:02:41]} 9. c3 {[%emt 0:02:34]} b5 {[%emt 0:12:08]} 10. h3 {[%emt 0:01:50]} Bh5 $146 {[%emt 0:00:45]} ({Vorgänger:} 10... Bxf3 11. Bxf3 Qc7 12. Bg2 d4 13. f4 Rad8 14. Qe2 dxc3 15. bxc3 {0-1 (34) Grasse,H (1523)-Bastians,F (1865) Dortmund 2005}) 11. exd5 {[%emt 0:04:52]} exd5 {[%emt 0:05:53]} 12. Ne5 {[%emt 0:00:24]} (12. Qd1 $11 {remains equal.}) 12... Nxe5 {[%emt 0:03:35]} 13. Qxe5 {[%emt 0:00:30]} Bd6 {[%emt 0:01:51]} 14. Qf5 {[%emt 0:00:09]} Bg6 {[%emt 0:00:18]} 15. Qf3 {[%emt 0:00:04]} Qb6 {[%emt 0:06:48]} (15... Re8 $17 16. c4 Rc8 17. cxb5 Qd7) 16. Nb3 {[%emt 0:00:28]} Rad8 {[%emt 0:19:53]} 17. Bg5 {[%emt 0:00:17]} Be5 {[%emt 0:08:48]} 18. Rae1 {[%emt 0:00:36]} Rfe8 {[%emt 0:01:00]} 19. Nc1 {[%emt 0:00:53]} (19. Nxc5 $14 Qxc5 {[#]} 20. Rxe5 $1 {[%mdl 512]}) 19... d4 {[%emt 0:02:31]} 20. cxd4 {[%emt 0:01:29]} Bxd4 {[%emt 0:00:21]} 21. Rxe8+ {[%emt 0:01:53]} Rxe8 {[%emt 0:00:11]} 22. b3 {[%emt 0:01:01]} h6 {[%emt 0:09:17]} 23. Bxf6 {[%emt 0:00:20]} Qxf6 {[%emt 0:02:18]} 24. Rd1 {[%emt 0:04:13]} Qe5 {[%emt 0:02:15]} 25. Qc6 $2 {[%emt 0:06:27]} (25. Kf1 $17 {war nötig.}) 25... Re6 {[%emt 0:02:46]} 26. Qd5 {[%emt 0:10:18] [#]} (26. Qa8+ $142 Kh7 27. Rf1) 26... Bxf2+ $1 {[%emt 0:03:15]} 27. Kxf2 {[%emt 0:00:07]} Qe3+ {[%emt 0:00:04]} 28. Kf1 {[%emt 0:00:02]} Rf6+ {[%emt 0:00:05]} 29. Bf3 Rxf3+ 30. Kg2 {[%emt 0:03:48]} Rf2+ {[%emt 0:00:52]} 31. Kh1 {[%emt 0:00:07]} Qxg3 {[%emt 0:00:17]} 0-1